bitfinex/quotes_SOLUSD_20240718
["timestamp","ask_amount","ask_price","bid_price","bid_amount"]
[1721346453858,15.06,159.56,159.53,21.9385]
[1721346454055,15.06,159.55,159.53,21.9385]
[1721346454687,15.06,159.55,159.53,15.6704]
[1721346455261,15.06,159.55,159.53,21.9386]
[1721346455472,6.2671,159.57,159.53,21.9386]
[1721346455662,15.06,159.55,159.53,15.6704]
[1721346457287,15.06,159.56,159.53,21.9387]
[1721346457584,15.06,159.55,159.53,21.9387]
[1721346457781,15.06,159.56,159.53,15.6704]
[1721346457967,15.06,159.56,159.52,6.2686]
[1721346457968,21.3274,159.56,159.52,6.2686]
[1721346458169,15.06,159.55,159.52,6.2686]
[1721346459972,15.06,159.55,159.53,6.2684]
[1721346460198,15.06,159.56,159.53,6.2684]
[1721346460375,21.3272,159.56,159.52,6.2687]
[1721346460574,15.06,159.55,159.52,6.2687]
[1721346461075,21.3277,159.55,159.51,6.2691]
[1721346464588,15.06,159.53,159.5,21.9427]
[1721346465197,15.06,159.53,159.49,6.2699]
[1721346465198,15.06,159.52,159.49,6.2699]
[1721346465370,15.06,159.51,159.48,6.2703]
[1721346465889,15.06,159.49,159.47,15.6764]
[1721346466068,15.06,159.49,159.47,21.9471]
[1721346467273,15.06,159.48,159.47,15.6764]
[1721346468778,15.06,159.48,159.46,7.1065965]
[1721346469481,15.06,159.48,159.46,0.8355965]
[1721346470084,15.06,159.47,159.46,0.8355965]
[1721346473879,21.3307,159.47,159.46,0.8355965]
[1721346476708,6.2707,159.47,159.46,0.8355965]
[1721346476910,15.06,159.47,159.46,0.8355965]
[1721346477712,21.3307,159.47,159.46,0.8355965]
[1721346478117,15.06,159.47,159.46,0.8355965]
[1721346478687,21.3307,159.47,159.46,0.8355965]
[1721346478885,15.06,159.47,159.46,0.8355965]
[1721346479386,21.3307,159.47,159.46,0.8355965]
[1721346481307,15.06,159.47,159.46,0.8355965]
[1721346481693,21.3307,159.47,159.46,0.8355965]
[1721346485704,66.3307,159.47,159.46,0.8355965]
[1721346485920,21.3307,159.47,159.46,0.8355965]
[1721346486092,44.01014427,159.51,159.46,0.8355965]
[1721346486292,15.06,159.47,159.46,0.8355965]
[1721346486696,21.3307,159.47,159.46,0.8355965]
[1721346487048,15.06,159.47,159.46,0.8355965]
[1721346487699,6.2701,159.49,159.46,0.8355965]
[1721346487908,15.06,159.47,159.46,0.8355965]
[1721346492207,15.06,159.48,159.46,0.8355965]
[1721346492410,15.06,159.48,159.46,2.089673]
[1721346492601,15.06,159.48,159.46,0.8355965]
[1721346493000,15.06,159.47,159.46,0.8355965]
[1721346494027,15.06,159.48,159.46,7.1066965]
[1721346494505,15.06,159.48,159.46,0.8355965]
[1721346494710,21.3303,159.48,159.46,0.8355965]
[1721346495228,15.06,159.47,159.46,0.8355965]
[1721346497626,21.3307,159.47,159.46,0.8355965]
[1721346498828,15.06,159.47,159.46,0.8355965]
[1721346500504,21.3307,159.47,159.46,0.8355965]
[1721346506329,6.2704,159.48,159.46,0.8355965]
[1721346506520,15.06,159.47,159.46,0.8355965]
[1721346508014,15.06,159.48,159.46,0.8355965]
[1721346508618,15.06,159.47,159.46,0.8355965]
[1721346508819,21.3307,159.47,159.46,0.8355965]
[1721346512940,6.2707,159.47,159.46,0.8355965]
[1721346513137,21.3307,159.47,159.46,0.8355965]
[1721346518052,66.3307,159.47,159.46,0.8355965]
[1721346521748,21.3307,159.47,159.46,0.8355965]
[1721346523144,66.3307,159.47,159.46,0.8355965]
[1721346524959,51.2707,159.47,159.46,0.8355965]
[1721346525147,6.2707,159.47,159.46,0.8355965]
[1721346525350,21.3307,159.47,159.46,0.8355965]
[1721346530171,66.3307,159.47,159.46,0.8355965]
[1721346533452,101.3907,159.47,159.46,0.8355965]
[1721346533654,6.2728,159.42,159.38,21.9592]
[1721346533871,15.06,159.4,159.38,21.9592]
[1721346534038,15.06,159.4,159.37,6.2746]
[1721346534368,15.06,159.38,159.36,6.275]
[1721346534960,15.06,159.37,159.35,15.6881]
[1721346535565,15.06,159.38,159.35,15.6881]
[1721346535767,15.06,159.38,159.36,1.25487852]
[1721346536071,15.06,159.38,159.36,7.52977852]
[1721346536863,15.06,159.38,159.36,6.2749]
[1721346537080,15.06,159.37,159.35,21.9635]
[1721346537270,15.06,159.36,159.32,15.6912]
[1721346537475,15.06,159.36,159.33,1.25503043]
[1721346537776,15.06,159.36,159.34,6.2756]
[1721346540265,15.06,159.36,159.33,6.2762]
[1721346540652,15.06,159.36,159.34,6.2755]
[1721346540853,15.06,159.36,159.34,15.6894]
[1721346541070,15.06,159.35,159.31,30.7515]
[1721346541283,15.06,159.34,159.31,30.7515]
[1721346541578,15.06,159.34,159.33,6.2762]
[1721346541751,15.06,159.35,159.34,6.2758]
[1721346541952,6.274,159.39,159.34,6.2758]
[1721346542251,15.06,159.37,159.35,7.53020618]
[1721346542448,15.06,159.37,159.36,6.2751]
[1721346542878,6.2739,159.39,159.35,21.9636]
[1721346543079,15.06,159.37,159.35,21.9636]
[1721346543387,15.06,159.38,159.36,1.2549014]
[1721346543566,6.2731,159.41,159.36,1.2549014]
[1721346543567,15.06,159.39,159.36,1.2549014]
[1721346544086,6.53377933,159.45,159.36,16.3149014]
[1721346544284,15.06,159.41,159.4,6.2732]
[1721346544661,15.06,159.41,159.36,64.0856014]
[1721346544662,15.06,159.41,159.38,6.2742]
[1721346544882,15.06,159.39,159.38,6.2742]
[1721346545265,15.06,159.4,159.37,6.2745]
[1721346545663,15.06,159.4,159.38,16.93992242]
[1721346545867,15.06,159.4,159.39,6.2736]
[1721346546173,15.06,159.42,159.4,6.2734]
[1721346546769,15.06,159.42,159.39,6.2738]
[1721346546972,15.06,159.41,159.39,6.2738]
[1721346549402,6.2724,159.43,159.39,6.2738]
[1721346549403,15.06,159.4,159.39,6.2738]
[1721346549569,15.06,159.41,159.39,6.2738]
[1721346552473,15.06,159.4,159.39,6.2738]
[1721346552686,15.06,159.4,159.38,21.9594]
[1721346553488,15.06,159.4,159.39,6.2739]
[1721346554087,15.06,159.41,159.39,6.2739]
[1721346555788,15.06,159.4,159.39,6.2739]
[1721346555962,15.06,159.4,159.38,21.9594]
[1721346556167,15.06,159.4,159.39,6.2739]
[1721346557268,6.2723,159.43,159.39,6.2739]
[1721346557467,15.06,159.4,159.39,6.2739]
[1721346557799,15.06,159.4,159.38,15.6852]
[1721346557800,15.06,159.4,159.38,21.9594]
[1721346559589,15.06,159.4,159.39,6.2739]
[1721346559897,15.06,159.4,159.36,17.65013275]
[1721346560081,15.06,159.39,159.37,6.2744]
[1721346560593,15.06,159.38,159.37,6.2746]
[1721346563695,15.06,159.39,159.38,6.2743]
[1721346564083,15.06,159.4,159.37,6.2745]
[1721346564394,15.06,159.39,159.37,6.2745]
[1721346565467,15.06,159.38,159.36,6.2749]
[1721346567488,15.06,159.37,159.35,15.688]
[1721346567688,15.06,159.36,159.35,21.9634]
[1721346568100,15.06,159.36,159.35,15.688]
[1721346568301,15.06,159.36,159.33,6.2762]
[1721346568501,15.06,159.35,159.33,6.2762]
[1721346568978,15.06,159.35,159.34,6.2758]
[1721346569287,15.06,159.35,159.33,6.2761]
[1721346569675,15.06,159.35,159.34,6.2758]
[1721346572211,15.4084,159.4,159.35,6.2752]
[1721346572212,15.06,159.36,159.35,6.2752]
[1721346572715,15.06,159.36,159.34,15.689]
[1721346572911,15.06,159.36,159.35,6.2754]
[1721346574505,15.06,159.36,159.34,21.9648]
[1721346575095,15.06,159.35,159.34,21.9648]
[1721346576191,15.06,159.36,159.34,21.9648]
[1721346576507,15.06,159.36,159.35,6.2754]
[1721346579326,21.3351,159.36,159.32,6.2765]
[1721346579499,15.06,159.34,159.33,6.2762]
[1721346582711,15.06,159.35,159.33,6.2762]
[1721346583012,15.06,159.35,159.32,6.2765]
[1721346583217,15.06,159.34,159.32,6.2765]
[1721346586300,15.06,159.33,159.32,6.2765]
[1721346590997,15.06,159.33,159.32,6.2766]
[1721346591298,15.06,159.33,159.31,21.9693]
[1721346591706,15.06,159.33,159.32,6.2766]
[1721346594501,15.06,159.33,159.31,15.6924]
[1721346595525,15.06,159.33,159.31,21.9692]
[1721346595706,15.06,159.33,159.32,6.2766]
[1721346597826,15.06,159.33,159.31,21.9693]
[1721346598002,15.06,159.33,159.32,6.2766]
[1721346599304,21.942546,159.4,159.32,46.4416]
[1721346599510,15.4084,159.4,159.37,15.6865]
[1721346599726,15.06,159.38,159.35,6.2754]
[1721346600037,15.06,159.36,159.35,6.2754]
[1721346602227,15.06,159.36,159.34,21.9652]
[1721346602434,15.06,159.35,159.34,21.9652]
[1721346602736,15.4084,159.4,159.31,46.4434]
[1721346602904,15.4084,159.4,159.36,15.6874]
[1721346603111,15.06,159.37,159.36,21.9625]
[1721346606324,15.06,159.37,159.36,15.6874]
[1721346606819,15.4084,159.4,159.36,15.6874]
[1721346607026,15.06,159.37,159.33,15.6901]
[1721346607207,15.06,159.35,159.34,6.2757]
[1721346607833,15.06,159.36,159.34,6.2757]
[1721346608231,15.06,159.36,159.35,6.2754]
[1721346608542,15.06,159.37,159.36,6.2749]
[1721346608711,15.06,159.37,159.35,21.9635]
[1721346609221,15.06,159.36,159.35,21.9635]
[1721346610341,15.06,159.36,159.33,6.2762]
[1721346610536,15.06,159.35,159.33,6.2762]
[1721346613135,15.06,159.34,159.32,21.9675]
[1721346613438,15.06,159.34,159.33,6.2762]
[1721346613638,15.06,159.35,159.33,6.2762]
[1721346614342,15.06,159.35,159.32,21.9676]
[1721346615137,6.3594,159.35,159.31,15.6922]
[1721346615339,6.3594,159.35,159.33,6.2762]
[1721346615529,15.06,159.34,159.33,6.2762]
[1721346615842,15.06,159.35,159.33,6.2762]
[1721346616339,12.6336,159.39,159.33,15.6902]
[1721346616522,6.3594,159.39,159.35,6.2753]
[1721346616730,15.06,159.37,159.35,6.2753]
[1721346621947,15.06,159.37,159.34,6.2758]
[1721346622424,15.06,159.37,159.35,6.2754]
[1721346623756,15.06,159.37,159.36,6.2751]
[1721346624250,15.06,159.38,159.36,6.2751]
[1721346624436,15.06,159.38,159.35,6.2753]
[1721346624744,15.06,159.37,159.35,6.2753]
[1721346628561,6.2739,159.39,159.35,6.2753]
[1721346628768,15.06,159.37,159.35,6.2753]
[1721346629457,15.4084,159.4,159.34,6.2757]
[1721346629458,15.06,159.36,159.34,6.2757]
[1721346631058,15.06,159.35,159.33,15.6902]
[1721346631245,15.06,159.34,159.31,6.2769]
[1721346631441,15.06,159.34,159.32,6.2765]
[1721346631641,15.06,159.35,159.32,6.2765]
[1721346632042,15.06,159.35,159.33,6.2762]
[1721346638859,15.06,159.35,159.34,6.2758]
[1721346639038,12.7304,159.38,159.34,6.2758]
[1721346639039,15.06,159.36,159.34,6.2758]
[1721346639439,15.06,159.36,159.33,6.2761]
[1721346642186,15.06,159.34,159.3,7.1126965]
[1721346642345,15.06,159.34,159.31,6.2768]
[1721346642667,15.06,159.34,159.32,1.25518215]
[1721346642867,15.06,159.34,159.31,6.2768]
[1721346643069,15.06,159.34,159.32,1.25526691]
[1721346643368,15.06,159.34,159.3,8.36780441]
[1721346643552,15.06,159.34,159.31,6.2769]
[1721346643863,15.06,159.34,159.32,1.25519992]
[1721346644068,15.06,159.34,159.32,7.53179992]
[1721346644770,15.06,159.34,159.32,6.2766]
[1721346645276,15.06,159.34,159.31,6.2769]
[1721346645446,15.06,159.34,159.32,1.25520228]
[1721346646866,15.06,159.34,159.32,7.53180235]
[1721346647075,15.06,159.35,159.32,7.53180235]
[1721346647373,15.06,159.35,159.32,6.2766]
[1721346647780,15.06,159.35,159.33,1.25510323]
[1721346648352,15.06,159.35,159.32,6.2766]
[1721346650487,15.06,159.34,159.32,6.2766]
[1721346650791,15.06,159.34,159.31,21.9691]
[1721346651585,6.2749,159.37,159.33,6.2762]
[1721346651792,15.06,159.34,159.33,6.2762]
[1721346651958,15.06,159.34,159.32,6.2766]
[1721346652378,15.06,159.34,159.31,21.9691]
[1721346652568,15.06,159.34,159.32,1.25520783]
[1721346653483,15.06,159.34,159.31,23.22429936]
[1721346653690,15.06,159.34,159.31,21.9691]
[1721346654266,21.3359,159.34,159.31,15.6922]
[1721346654561,15.06,159.32,159.31,15.6922]
[1721346660284,15.06,159.32,159.31,21.9692]
[1721346660498,15.06,159.33,159.31,21.9692]
[1721346663800,15.06,159.34,159.32,6.2766]
[1721346667594,15.06,159.34,159.31,21.9691]
[1721346668499,15.06,159.34,159.32,7.53181552]
[1721346669284,15.06,159.34,159.32,6.2766]
[1721346670604,15.06,159.34,159.31,21.9691]
[1721346672797,15.06,159.33,159.31,21.9691]
[1721346675608,15.06,159.33,159.32,6.2766]
[1721346676507,15.06,159.33,159.31,21.9691]
[1721346676888,15.06,159.32,159.31,21.9691]
[1721346684206,15.06,159.33,159.31,21.9691]
[1721346684918,15.06,159.33,159.32,6.2766]
[1721346688617,15.06,159.33,159.31,21.9691]
[1721346690226,15.06,159.32,159.31,21.9691]
[1721346694900,15.06,159.32,159.3,0.8355965]
[1721346695105,15.06,159.31,159.3,0.8355965]
[1721346698322,21.337,159.31,159.3,0.8355965]
[1721346699621,15.06,159.31,159.3,0.8355965]
[1721346709021,21.337,159.31,159.3,0.8355965]
[1721346709515,15.06,159.31,159.3,0.8355965]
[1721346710647,21.337,159.31,159.3,0.8355965]
[1721346712521,66.337,159.31,159.3,0.8355965]
[1721346712738,21.337,159.31,159.3,0.8355965]
[1721346717846,6.4997,159.33,159.3,0.8355965]
[1721346718034,15.06,159.31,159.3,0.8355965]
[1721346722333,21.337,159.31,159.3,0.8355965]
[1721346723549,15.06,159.31,159.3,0.8355965]
[1721346724436,21.337,159.31,159.3,0.8355965]
[1721346728751,81.397,159.31,159.3,0.8355965]
[1721346728957,66.337,159.31,159.3,0.8355965]
[1721346729757,60.06,159.31,159.23,15.4594]
[1721346729958,15.06,159.25,159.23,16.71524326]
[1721346730173,15.06,159.25,159.23,15.4594]
[1721346731088,15.06,159.26,159.25,6.2793]
[1721346733303,15.06,159.26,159.24,21.9786]
[1721346733583,15.06,159.25,159.24,21.9786]
[1721346735768,15.06,159.26,159.24,21.9786]
[1721346735993,15.06,159.26,159.25,6.2794]
[1721346738707,15.06,159.26,159.24,21.9786]
[1721346741193,15.06,159.25,159.24,21.9786]
[1721346741399,15.06,159.25,159.22,6.2805]
[1721346741612,15.06,159.23,159.22,6.2805]
[1721346742098,15.06,159.24,159.23,6.2801]
[1721346742299,15.06,159.25,159.24,6.2798]
[1721346742509,15.06,159.25,159.23,21.9804]
[1721346742680,15.06,159.24,159.23,21.9804]
[1721346743610,21.3402,159.24,159.19,9.43270546]
[1721346743796,15.06,159.2,159.19,6.2815]
[1721346744184,15.06,159.21,159.18,15.71653077]
[1721346744586,15.06,159.21,159.18,6.282]
[1721346744997,15.06,159.21,159.19,6.2817]
[1721346746705,15.06,159.22,159.19,6.2817]
[1721346746912,15.06,159.22,159.18,1.25622865]
[1721346747101,15.06,159.22,159.2,6.2811]
[1721346747275,82.1451,159.28,159.22,6.2802]
[1721346747481,82.1451,159.28,159.21,15.7022]
[1721346747482,15.06,159.24,159.21,23.23922408]
[1721346747785,15.06,159.23,159.21,21.9831]
[1721346747982,15.06,159.22,159.19,6.2814]
[1721346748376,15.06,159.21,159.19,6.2814]
[1721346749388,6.2791,159.26,159.21,6.281]
[1721346749581,82.1451,159.28,159.22,6.2804]
[1721346749777,15.06,159.23,159.22,6.2804]
[1721346749981,15.06,159.23,159.21,6.2808]
[1721346750198,15.06,159.22,159.2,21.9843]
[1721346750699,6.2792,159.26,159.21,6.281]
[1721346750904,15.06,159.22,159.21,6.281]
[1721346751100,15.06,159.23,159.22,6.2805]
[1721346751892,15.06,159.23,159.21,6.2808]
[1721346752096,15.06,159.22,159.2,21.9843]
[1721346752322,82.1451,159.28,159.2,15.7031]
[1721346752323,15.06,159.21,159.2,15.7031]
[1721346752621,15.06,159.22,159.2,15.7031]
[1721346752784,15.06,159.21,159.2,15.7031]
[1721346753409,15.06,159.21,159.2,21.9845]
[1721346759822,15.06,159.21,159.17,9.43413476]
[1721346759823,15.06,159.21,159.17,15.7061]
[1721346760124,15.06,159.2,159.18,6.282]
[1721346760511,15.06,159.2,159.19,6.2818]
[1721346761113,15.06,159.21,159.19,6.2818]
[1721346761997,15.06,159.2,159.18,6.2821]
[1721346762323,15.06,159.19,159.18,6.2821]
[1721346763109,15.06,159.2,159.19,6.2817]
[1721346764031,15.06,159.2,159.17,16.96247619]
[1721346764032,15.06,159.2,159.18,6.2821]
[1721346764215,15.06,159.19,159.18,6.2821]
[1721346768723,6.2825,159.17,159.15,9.43479607]
[1721346768932,15.06,159.16,159.14,9.43479607]
[1721346769111,15.06,159.15,159.14,9.43479607]
[1721346769319,15.06,159.15,159.14,9.4357126]
[1721346770217,15.06,159.15,159.13,7.1196965]
[1721346770526,15.06,159.14,159.13,0.8355965]
[1721346770727,15.06,159.14,159.13,7.1196965]
[1721346777411,15.06,159.14,159.13,0.8355965]
[1721346777611,15.06,159.14,159.13,7.1196965]
[1721346783041,22.2456,159.17,159.14,6.2837]
[1721346783237,15.06,159.15,159.13,7.1196965]
[1721346783438,15.06,159.14,159.13,7.1196965]
[1721346783647,15.06,159.14,159.13,0.8355965]
[1721346785615,22.2456,159.17,159.13,0.8355965]
[1721346785821,15.06,159.14,159.13,7.1196965]
[1721346787445,15.06,159.14,159.13,0.8355965]
[1721346788158,15.06,159.14,159.13,7.1196965]
[1721346790645,15.06,159.14,159.13,0.8355965]
[1721346792256,15.06,159.14,159.13,7.1196965]
[1721346797669,15.5821,159.21,159.13,0.8355965]
[1721346797841,15.06,159.17,159.16,21.9903]
[1721346798874,21.8634,159.21,159.16,21.9903]
[1721346799083,15.06,159.17,159.16,15.7074]
[1721346800145,6.6348,159.22,159.16,15.7074]
[1721346800347,15.06,159.2,159.16,15.7074]
[1721346800545,15.06,159.2,159.19,6.2814]
[1721346801070,15.06,159.2,159.18,21.9869]
[1721346801274,15.06,159.19,159.18,21.9869]
[1721346802270,15.06,159.2,159.18,21.9869]
[1721346803778,6.6348,159.22,159.18,21.9869]
[1721346803974,6.6348,159.22,159.19,6.2816]
[1721346804175,15.06,159.21,159.19,6.2816]
[1721346804859,21.8615,159.25,159.2,6.2813]
[1721346805184,15.06,159.24,159.23,6.2802]
[1721346805684,15.06,159.25,159.24,6.2798]
[1721346806095,15.06,159.26,159.24,6.2798]
[1721346806668,6.2779,159.29,159.23,6.2801]
[1721346806872,15.06,159.25,159.23,6.2801]
[1721346809077,6.2783,159.28,159.23,6.2801]
[1721346809401,15.06,159.25,159.23,6.2801]
[1721346809966,15.06,159.25,159.24,6.2798]
[1721346810362,15.06,159.25,159.23,6.28]
[1721346812990,15.06,159.24,159.21,15.7025]
[1721346813168,15.06,159.23,159.21,21.9832]
[1721346814085,15.06,159.24,159.21,21.9832]
[1721346814487,6.2791,159.26,159.21,21.9832]
[1721346814488,15.06,159.22,159.21,21.9832]
[1721346816890,15.06,159.22,159.17,30.4824]
[1721346816891,15.06,159.22,159.2,6.2813]
[1721346817077,15.06,159.21,159.18,15.705]
[1721346817281,15.06,159.21,159.19,6.2815]
[1721346817481,15.06,159.21,159.2,6.2814]
[1721346817684,15.06,159.21,159.18,15.705]
[1721346817685,15.06,159.21,159.19,6.2816]
[1721346818981,15.06,159.21,159.2,6.2814]
[1721346820698,6.3896,159.26,159.21,6.281]
[1721346820900,15.06,159.22,159.21,6.281]
[1721346821092,6.3896,159.26,159.21,6.281]
[1721346821093,15.06,159.23,159.21,6.281]
[1721346824308,15.06,159.22,159.2,21.9837]
[1721346825686,6.3896,159.26,159.21,6.2808]
[1721346825893,15.06,159.22,159.2,21.9837]
[1721346830911,6.3896,159.26,159.2,15.7025]
[1721346831088,15.06,159.23,159.21,1.25609331]
[1721346831412,15.06,159.23,159.22,6.2806]
[1721346832115,15.06,159.24,159.22,6.2806]
[1721346832299,15.06,159.24,159.21,7.53689331]
[1721346832724,15.06,159.23,159.21,6.2808]
[1721346833020,15.06,159.23,159.2,15.7025]
[1721346833203,15.06,159.22,159.2,15.7025]
[1721346833519,15.06,159.22,159.2,21.9837]
[1721346835717,15.06,159.22,159.21,6.281]
[1721346835906,15.06,159.23,159.21,6.281]
[1721346836412,15.06,159.23,159.22,6.2806]
[1721346837899,15.06,159.23,159.21,6.2809]
[1721346840602,6.3896,159.26,159.22,6.2804]
[1721346840916,15.06,159.24,159.22,21.9818]
[1721346842222,6.3896,159.26,159.22,21.9818]
[1721346842418,15.06,159.23,159.21,6.2808]
[1721346842728,15.06,159.22,159.16,15.7069]
[1721346842915,25.2496,159.26,159.18,6.2821]
[1721346842916,15.06,159.2,159.18,6.2821]
[1721346843228,15.06,159.21,159.18,6.2821]
[1721346843427,15.06,159.2,159.18,6.2821]
[1721346844133,15.06,159.21,159.18,6.2821]
[1721346844709,15.06,159.2,159.18,6.2821]
[1721346844926,15.06,159.2,159.17,6.2824]
[1721346846335,15.06,159.21,159.17,6.2824]
[1721346846628,15.06,159.21,159.17,7.53877179]
[1721346846813,15.06,159.21,159.18,6.2821]
[1721346847218,15.06,159.22,159.19,6.2815]
[1721346850040,15.06,159.24,159.2,16.95904154]
[1721346850424,15.06,159.23,159.2,16.95904154]
[1721346850625,15.06,159.23,159.2,21.984]
[1721346851727,15.06,159.21,159.18,6.2818]
[1721346851934,15.06,159.21,159.17,15.706]
[1721346852625,15.06,159.21,159.18,1.2562471]
[1721346853126,15.06,159.21,159.19,6.2816]
[1721346854737,6.2795,159.25,159.2,6.2814]
[1721346854923,15.06,159.21,159.2,6.2814]
[1721346855121,15.06,159.21,159.17,15.706]
[1721346855343,15.06,159.19,159.17,15.706]
[1721346855640,15.06,159.2,159.17,15.706]
[1721346855850,15.06,159.21,159.17,15.706]
[1721346856041,45.0,159.25,159.17,15.706]
[1721346856222,15.06,159.22,159.17,15.706]
[1721346856422,45.0,159.25,159.17,15.706]
[1721346856719,6.3896,159.26,159.2,21.9846]
[1721346856720,15.06,159.22,159.2,21.9846]
[1721346857535,6.2794,159.25,159.2,21.9846]
[1721346857823,15.06,159.22,159.21,6.281]
[1721346858136,15.06,159.23,159.21,6.281]
[1721346858821,12.6687,159.26,159.21,6.281]
[1721346859021,12.6687,159.26,159.2,15.7035]
[1721346859022,15.06,159.24,159.22,6.2804]
[1721346859735,15.06,159.24,159.21,6.2809]
[1721346860353,15.06,159.24,159.22,6.2806]
[1721346860651,15.06,159.25,159.23,6.2801]
[1721346860830,15.06,159.25,159.22,21.9815]
[1721346861533,15.06,159.25,159.23,6.2801]
[1721346865539,26.23519022,159.32,159.22,16.95696032]
[1721346865540,12.3401,159.3,159.22,16.95696032]
[1721346865743,15.06,159.27,159.25,6.2793]
[1721346866133,15.06,159.27,159.24,6.2797]
[1721346866732,15.06,159.28,159.25,6.2793]
[1721346867053,15.06,159.28,159.24,7.53555998]
[1721346868141,15.06,159.28,159.25,6.2794]
[1721346869054,12.34,159.3,159.25,6.2794]
[1721346869236,15.06,159.28,159.25,6.2794]
[1721346870372,15.06,159.28,159.24,21.9786]
[1721346870667,15.06,159.27,159.24,21.9786]
[1721346872048,15.06,159.28,159.24,21.9786]
[1721346873154,15.06,159.28,159.25,6.2793]
[1721346873362,15.06,159.29,159.27,6.2786]
[1721346873549,6.0624,159.3,159.29,6.2778]
[1721346873550,15.06,159.3,159.29,6.2778]
[1721346873867,15.06,159.31,159.29,6.2778]
[1721346874566,6.3446,159.34,159.31,6.277]
[1721346875143,6.3446,159.34,159.3,21.9705]
[1721346875344,6.3446,159.34,159.31,6.277]
[1721346876249,6.3446,159.34,159.3,21.9705]
[1721346876561,15.06,159.31,159.3,21.9705]
[1721346880645,15.06,159.32,159.31,6.2769]
[1721346887971,6.3446,159.34,159.31,6.2769]
[1721346888180,15.06,159.32,159.31,6.2769]
[1721346890880,15.06,159.32,159.3,21.9705]
[1721346891075,15.06,159.31,159.3,21.9705]
[1721346893563,31.3931,159.31,159.3,21.9705]
[1721346893883,31.3931,159.31,159.27,21.9747]
[1721346893884,76.3931,159.31,159.27,21.9747]
[1721346894080,15.06,159.28,159.27,21.9747]
[1721346894658,6.3446,159.34,159.29,6.2774]
[1721346894858,15.06,159.3,159.29,6.2774]
[1721346895283,6.3446,159.34,159.3,15.693]
[1721346895595,15.06,159.32,159.3,15.693]
[1721346895901,15.06,159.31,159.3,21.9704]
[1721346900286,15.06,159.31,159.3,15.693]
[1721346901272,15.06,159.31,159.28,6.2781]
[1721346901597,15.06,159.29,159.28,6.2781]
[1721346903761,15.06,159.29,159.27,21.9748]
[1721346903994,15.06,159.28,159.27,21.9748]
[1721346904578,6.3446,159.34,159.27,31.3921]
[1721346904777,6.3446,159.34,159.32,6.2766]
[1721346904982,15.06,159.33,159.32,6.2766]
[1721346905684,15.06,159.33,159.31,21.969]
[1721346906263,15.06,159.32,159.29,6.2778]
[1721346906495,15.06,159.3,159.29,6.2778]
[1721346909432,12.6206,159.34,159.28,15.6949]
[1721346909433,6.3446,159.34,159.3,6.2773]
[1721346909739,15.06,159.31,159.3,6.2773]
[1721346910534,6.3446,159.34,159.32,6.2766]
[1721346910705,15.06,159.33,159.31,21.9695]
[1721346910912,15.06,159.32,159.28,15.6951]